[Event "CZE-ch U10 2020"]
[Site "Kouty nad Desnou"]
[Date "2020.03.11"]
[Round "6.7"]
[White "Stary, Vojtech"]
[Black "Alidis, Myron"]
[Result "0-1"]
[ECO "B80"]
[WhiteElo "1559"]
[BlackElo "1395"]
[Annotator "NA"]
[PlyCount "144"]
[EventDate "2020.03.07"]
[EventCountry "CZE"]
[SourceTitle "playchess.com"]
[Source "ChessBase"]
[SourceQuality "1"]
[TimeControl "5400+30"]

1. e4 {[%emt 0:00:00]} c5 {[%emt 0:00:00]} 2. Nf3 {[%emt 0:00:00]} e6 {[%emt 0:00:00]} 3. d4 {[%emt 0:00:00]} cxd4 {[%emt 0:00:09]} 4. Nxd4 {[%emt 0:00:00]} Nf6 {[%emt 0:00:06]} 5. Nc3 {[%emt 0:00:00]} d6 {[%emt 0:00:07]} 6. Be3 {[%emt 0:00:00]} Be7 {[%emt 0:00:14]} 7. f3 {[%emt 0:00:05]} O-O {[%emt 0:00:11]} 8. Qd2 {[%emt 0:00:18]} Nc6 {[%emt 0:00:11]} 9. g4 {[%emt 0:00:15]} d5 {[%emt 0:00:38]} 10. g5 {[%emt 0:00:11]} Ne8 {[%emt 0:00:33]} 11. h4 {[%emt 0:08:50]} dxe4 {[%emt 0:00:42]} 12. Nxc6 {[%emt 0:07:24]} Qxd2+ {[%emt 0:00:37]} 13. Bxd2 {[%emt 0:00:49]} bxc6 {[%emt 0:00:08]} 14. Nxe4 {[%emt 0:01:11]} Bb7 {[%emt 0:00:15]} 15. O-O-O {[%emt 0:03:16]} Nd6 {[%emt 0:01:08]} 16. Nxd6 {[%emt 0:01:36]} Bxd6 {[%emt 0:00:07]} 17. Be3 {[%emt 0:01:46]} Rfd8 {[%emt 0:00:39]} 18. Be2 {[%emt 0:05:31]} a5 {[%emt 0:01:38]} 19. Kb1 {[%emt 0:08:18]} Bc7 {[%emt 0:00:38]} 20. Rxd8+ {[%emt 0:02:47]} Rxd8 {[%emt 0:00:08]} 21. Bd3 {[%emt 0:01:31]} Rd7 {[%emt 0:01:59]} 22. Kc1 {[%emt 0:04:13]} Kf8 {[%emt 0:00:29]} 23. Bc5+ {[%emt 0:01:03]} Bd6 {[%emt 0:00:10]} 24. Bxd6+ {[%emt 0:00:38]} Rxd6 {[%emt 0:00:09]} 25. Be4 {[%emt 0:04:49]} g6 {[%emt 0:01:18]} 26. Rd1 {[%emt 0:02:30]} Rxd1+ {[%emt 0:00:07]} 27. Kxd1 {[%emt 0:00:06]} Kg7 {[%emt 0:00:14]} 28. Kd2 {[%emt 0:02:30]} f5 {[%emt 0:00:28]} 29. Bd3 {[%emt 0:03:03]} e5 {[%emt 0:00:28]} 30. Ke3 {[%emt 0:04:37]} c5 {[%emt 0:00:28]} 31. Bc4 {[%emt 0:02:33]} h6 {[%emt 0:01:18]} 32. c3 {[%emt 0:03:12]} hxg5 {[%emt 0:00:11]} 33. hxg5 {[%emt 0:00:41]} f4+ {[%emt 0:00:16]} 34. Ke2 {[%emt 0:02:10]} e4 {[%emt 0:00:15]} 35. fxe4 {[%emt 0:02:51]} Bxe4 {[%emt 0:00:14]} 36. Be6 {[%emt 0:01:30]} Kf8 {[%emt 0:00:21]} 37. a3 {[%emt 0:03:17]} Ke7 {[%emt 0:00:15]} 38. Bg4 {[%emt 0:01:07]} Kd6 {[%emt 0:00:20]} 39. Bc8 {[%emt 0:01:21]} Kc6 {[%emt 0:03:36]} 40. Be6 {[%emt 0:01:56]} Kb5 {[%emt 0:02:07]} 41. Bd7+ {[%emt 0:02:40]} Kb6 {[%emt 0:01:31]} 42. Be6 {[%emt 0:01:09]} Kc6 {[%emt 0:00:22]} 43. Bg4 {[%emt 0:00:49]} Kd6 {[%emt 0:01:13]} 44. Bc8 {[%emt 0:01:08]} a4 {[%emt 0:00:24]} 45. Bg4 {[%emt 0:01:28]} c4 {[%emt 0:01:17]} 46. Bc8 {[%emt 0:01:15]} Bf5 {[%emt 0:01:33]} 47. Ba6 {[%emt 0:01:28]} Bd3+ {[%emt 0:00:56]} 48. Kf3 {[%emt 0:00:24]} Ke5 {[%emt 0:00:21]} 49. Bc8 {[%emt 0:00:59]} Bf5 {[%emt 0:00:33]} 50. Bb7 {[%emt 0:00:57]} Bc2 {[%emt 0:01:24]} 51. Bc8 {[%emt 0:00:18]} Bf5 {[%emt 0:00:44]} 52. Bb7 {[%emt 0:00:16]} Bh3 {[%emt 0:01:16]} 53. Bc6 {[%emt 0:01:13]} Be6 {[%emt 0:00:30]} 54. Bxa4 {[%emt 0:01:13]} Bd5+ {[%emt 0:00:33]} 55. Kf2 {[%emt 0:01:10]} Kf5 {[%emt 0:00:26]} 56. Bd7+ {[%emt 0:00:50]} Kxg5 {[%emt 0:00:14]} 57. a4 {[%emt 0:00:39]} Kh4 {[%emt 0:00:32]} 58. a5 {[%emt 0:00:27]} Bb7 {[%emt 0:00:15]} 59. Bb5 {[%emt 0:00:42]} g5 {[%emt 0:01:03]} 60. Bxc4 {[%emt 0:00:38]} g4 {[%emt 0:00:24]} 61. b4 {[%emt 0:01:39]} g3+ {[%emt 0:00:35]} 62. Kg1 {[%emt 0:01:50]} f3 {[%emt 0:00:28]} 63. a6 {[%emt 0:05:20]} Ba8 {[%emt 0:01:21]} 64. Be6 {[%emt 0:00:42]} Be4 {[%emt 0:00:53]} 65. Bc4 {[%emt 0:01:31]} f2+ {[%emt 0:00:17]} 66. Kf1 {[%emt 0:00:16]} Kh3 {[%emt 0:00:10]} 67. b5 {[%emt 0:02:49]} Kh2 {[%emt 0:00:14]} 68. b6 {[%emt 0:00:54]} g2+ {[%emt 0:00:22]} 69. Kxf2 {[%emt 0:00:20]} g1=Q+ {[%emt 0:00:10]} 70. Ke2 {[%emt 0:00:09]} Qxb6 {[%emt 0:00:21]} 71. Be6 {[%emt 0:00:30]} Qxa6+ {[%emt 0:00:28]} 72. Ke3 {[%emt 0:00:15]} Qxe6 {[%emt 0:00:07]} 0-1

[Event "CZE-ch U10 2020"]
[Site "Kouty nad Desnou"]
[Date "2020.03.11"]
[Round "6.8"]
[White "Bulawa, Adam"]
[Black "Milek, Tobias"]
[Result "1/2-1/2"]
[ECO "B51"]
[WhiteElo "1014"]
[BlackElo "1163"]
[Annotator "NA RC"]
[PlyCount "103"]
[EventDate "2020.03.07"]
[EventCountry "CZE"]
[SourceTitle "playchess.com"]
[Source "ChessBase"]
[SourceQuality "1"]
[TimeControl "5400+30"]

1. e4 {[%emt 0:00:00]} c5 {[%emt 0:00:00]} 2. Nf3 {[%emt 0:00:00]} d6 {[%emt 0:00:00]} 3. Bb5+ {[%emt 0:00:00]} Nd7 {[%emt 0:00:00]} 4. O-O {[%emt 0:00:40]} Ngf6 {[%emt 0:00:07]} 5. Re1 {[%emt 0:00:19]} a6 {[%emt 0:00:16]} 6. Bf1 {[%emt 0:03:07]} g6 {[%emt 0:01:54]} 7. c3 {[%emt 0:00:49]} Ne5 {[%emt 0:00:35]} 8. Nxe5 {[%emt 0:02:17]} dxe5 {[%emt 0:00:43]} 9. d3 {[%emt 0:02:02]} Bg7 {[%emt 0:00:33]} 10. h3 {[%emt 0:08:12]} O-O {[%emt 0:00:52]} 11. Nd2 {[%emt 0:01:17]} b5 {[%emt 0:00:38]} 12. Nf3 {[%emt 0:00:36]} Qc7 {[%emt 0:00:54]} 13. b3 {[%emt 0:02:24]} Rd8 {[%emt 0:01:04]} 14. Qc2 {[%emt 0:01:31]} Be6 {[%emt 0:01:32]} 15. c4 {[%emt 0:01:27]} b4 {[%emt 0:01:37]} 16. Bb2 {[%emt 0:00:19]} Nh5 {[%emt 0:01:09]} 17. Rad1 {[%emt 0:06:42]} Nf4 {[%emt 0:02:17]} 18. Kh2 {[%emt 0:06:20]} Bc8 {[%emt 0:01:42]} 19. g3 {[%emt 0:01:29]} Ne6 {[%emt 0:00:59]} 20. Kg1 {[%emt 0:03:36]} Nd4 {[%emt 0:02:29]} 21. Bxd4 {[%emt 0:00:27]} exd4 {[%emt 0:00:26]} 22. Bg2 {[%emt 0:01:58]} e5 {[%emt 0:01:46]} 23. Nh2 {[%emt 0:01:39]} Be6 {[%emt 0:01:31]} 24. Rf1 {[%emt 0:02:09]} Qd7 {[%emt 0:00:56]} 25. g4 {[%emt 0:00:55]} f5 {[%emt 0:01:50]} 26. exf5 {[%emt 0:00:53]} gxf5 {[%emt 0:01:09]} 27. Bxa8 {[%emt 0:00:44]} Rxa8 {[%emt 0:00:13]} 28. Qe2 {[%emt 0:00:52]} fxg4 {[%emt 0:00:36]} 29. Nxg4 {[%emt 0:00:13]} Bxg4 {[%emt 0:00:44]} 30. Qxg4 {[%emt 0:00:15]} Qxg4+ {[%emt 0:00:04]} 31. hxg4 {[%emt 0:00:10]} Kh8 {[%emt 0:00:10]} 32. Rde1 {[%emt 0:00:57]} Rg8 {[%emt 0:00:43]} 33. f3 {[%emt 0:00:29]} Bf6 {[%emt 0:00:33]} 34. Re2 {[%emt 0:00:30]} Rg6 {[%emt 0:00:26]} 35. Rh2 {[%emt 0:01:45]} Bg5 {[%emt 0:00:35]} 36. Rh5 {[%emt 0:00:49]} Be3+ {[%emt 0:00:14]} 37. Kg2 {[%emt 0:00:16]} Bf4 {[%emt 0:00:16]} 38. Rfh1 {[%emt 0:00:27]} h6 {[%emt 0:00:21]} 39. Ra1 {[%emt 0:01:14]} a5 {[%emt 0:00:53]} 40. a3 {[%emt 0:00:23]} bxa3 {[%emt 0:00:47]} 41. Rxa3 {[%emt 0:00:09]} Rb6 {[%emt 0:00:02]} 42. Rh1 {[%emt 0:02:12]} Kg7 {[%emt 0:01:22]} 43. Rb1 {[%emt 0:00:34]} h5 {[%emt 0:00:31]} 44. gxh5 {[%emt 0:00:54]} Kh6 {[%emt 0:00:09]} 45. Rxa5 {[%emt 0:00:50]} Kxh5 {[%emt 0:00:08]} 46. Rh1+ {[%emt 0:00:14]} Kg5 {[%emt 0:00:08]} 47. Rb5 {[%emt 0:01:18]} Ra6 {[%emt 0:00:15]} 48. Kh3 {[%emt 0:01:56]} Ra2 {[%emt 0:00:24]} 49. Rg1+ {[%emt 0:01:20]} Kh5 {[%emt 0:00:17]} 50. Rg2 {[%emt 0:00:44]} Ra1 {[%emt 0:00:18]} 51. Rg8 {[%emt 0:02:49]} Ra2 {[%emt 0:02:54]} 52. Rg2 1/2-1/2

[Event "CZE-ch U10 2020"]
[Site "Kouty nad Desnou"]
[Date "2020.03.11"]
[Round "6.9"]
[White "Melnikov, Ivan"]
[Black "Srba, Daniel"]
[Result "1-0"]
[ECO "C47"]
[WhiteElo "1253"]
[BlackElo "1145"]
[Annotator "NA RC"]
[PlyCount "68"]
[EventDate "2020.03.07"]
[EventCountry "CZE"]
[SourceTitle "playchess.com"]
[Source "ChessBase"]
[SourceQuality "1"]
[TimeControl "5400+30"]

1. e4 e5 {[%emt 0:00:00]} 2. Nf3 {[%emt 0:00:01]} Nc6 {[%emt 0:00:33]} 3. Nc3 {[%emt 0:00:29]} Nf6 {[%emt 0:01:42]} 4. d4 {[%emt 0:01:35]} exd4 {[%emt 0:06:19]} 5. Nxd4 {[%emt 0:00:31]} Bc5 {[%emt 0:04:05]} 6. Be3 {[%emt 0:01:26]} Bb6 {[%emt 0:02:10]} 7. Be2 {[%emt 0:03:34]} d5 {[%emt 0:07:07]} 8. Bb5 {[%emt 0:11:54]} Bd7 {[%emt 0:03:03]} 9. exd5 {[%emt 0:05:54]} Nxd4 {[%emt 0:00:50]} 10. Bxd7+ {[%emt 0:01:35]} Qxd7 {[%emt 0:00:21]} 11. Bxd4 {[%emt 0:00:15]} Bxd4 {[%emt 0:05:35]} 12. Qxd4 {[%emt 0:02:03]} O-O {[%emt 0:00:32]} 13. O-O {[%emt 0:01:28]} Rad8 {[%emt 0:00:09]} 14. Rad1 {[%emt 0:00:11]} c6 {[%emt 0:00:39]} 15. d6 {[%emt 0:00:24]} Ne8 {[%emt 0:01:15]} 16. Qc5 {[%emt 0:03:55]} Nxd6 {[%emt 0:07:56]} 17. Qxa7 {[%emt 0:02:22]} Nb5 {[%emt 0:01:19]} 18. Rxd7 {[%emt 0:02:09]} Nxa7 {[%emt 0:00:25]} 19. Rxb7 {[%emt 0:00:13]} Nc8 20. f4 {[%emt 0:04:06]} Rfe8 {[%emt 0:11:02]} 21. a4 {[%emt 0:00:56]} Rd2 {[%emt 0:00:31]} 22. a5 {[%emt 0:01:34]} Red8 {[%emt 0:05:43]} 23. a6 {[%emt 0:05:04]} R2d7 {[%emt 0:01:53]} 24. Ra1 {[%emt 0:02:40]} Na7 {[%emt 0:06:53]} 25. Rxd7 {[%emt 0:01:19]} Rxd7 {[%emt 0:02:16]} 26. Re1 {[%emt 0:00:03]} Kf8 {[%emt 0:00:08]} 27. Rd1 {[%emt 0:00:31]} Rxd1+ {[%emt 0:01:34]} 28. Nxd1 {[%emt 0:00:05]} Ke7 {[%emt 0:00:14]} 29. Nc3 {[%emt 0:00:17]} Ke6 {[%emt 0:01:54]} 30. Kf2 {[%emt 0:00:18]} Kf5 {[%emt 0:01:10]} 31. Ke3 {[%emt 0:00:04]} Ke6 {[%emt 0:01:15]} 32. Kd4 {[%emt 0:00:19]} f5 {[%emt 0:01:46]} 33. Kc5 {[%emt 0:01:50]} Kd7 {[%emt 0:01:05]} 34. Kb6 {[%emt 0:01:35]} Kd6 1-0

[Event "CZE-ch U10 2020"]
[Site "Kouty nad Desnou"]
[Date "2020.03.11"]
[Round "6.10"]
[White "Ruzicka, Oto"]
[Black "Soucek, Andrej"]
[Result "0-1"]
[ECO "B35"]
[WhiteElo "1168"]
[BlackElo "1043"]
[Annotator "NA RC"]
[PlyCount "100"]
[EventDate "2020.03.07"]
[EventCountry "CZE"]
[SourceTitle "playchess.com"]
[Source "ChessBase"]
[SourceQuality "1"]
[TimeControl "5400+30"]

1. e4 {[%emt 0:00:00]} c5 {[%emt 0:00:00]} 2. Nf3 {[%emt 0:00:00]} Nc6 {[%emt 0:00:04]} 3. d4 {[%emt 0:00:15]} cxd4 {[%emt 0:00:32]} 4. Nxd4 {[%emt 0:00:17]} g6 {[%emt 0:00:29]} 5. Nc3 {[%emt 0:00:47]} Bg7 {[%emt 0:00:35]} 6. Be3 {[%emt 0:00:46]} Nf6 {[%emt 0:00:34]} 7. Bc4 {[%emt 0:03:06]} O-O {[%emt 0:00:26]} 8. Qe2 {[%emt 0:06:24]} Nxe4 {[%emt 0:01:24]} 9. Nxe4 {[%emt 0:00:20]} d5 {[%emt 0:00:31]} 10. Bxd5 {[%emt 0:01:47]} Qxd5 {[%emt 0:00:29]} 11. Nc3 {[%emt 0:00:44]} Qd8 {[%emt 0:00:40]} 12. O-O-O {[%emt 0:02:12]} Nxd4 {[%emt 0:00:28]} 13. Bxd4 {[%emt 0:00:58]} Bxd4 {[%emt 0:00:29]} 14. Nb5 {[%emt 0:02:34]} e5 {[%emt 0:01:50]} 15. Qc4 {[%emt 0:03:40]} Be6 {[%emt 0:00:41]} 16. Qb4 {[%emt 0:04:49]} Qg5+ {[%emt 0:01:56]} 17. Kb1 {[%emt 0:02:18]} Qxg2 {[%emt 0:00:45]} 18. Nxd4 {[%emt 0:03:37]} exd4 {[%emt 0:00:22]} 19. Qe7 {[%emt 0:04:02]} Qxf2 {[%emt 0:02:37]} 20. Qxb7 {[%emt 0:01:33]} Bf5 {[%emt 0:02:20]} 21. Rc1 {[%emt 0:07:32]} d3 {[%emt 0:00:43]} 22. Ka1 {[%emt 0:07:10]} dxc2 {[%emt 0:00:57]} 23. Qb5 {[%emt 0:05:45]} Qb6 {[%emt 0:01:03]} 24. Qa4 {[%emt 0:02:32]} Rab8 {[%emt 0:01:08]} 25. Qa3 {[%emt 0:00:59]} Qb4 {[%emt 0:00:38]} 26. Qc3 {[%emt 0:02:43]} Qxc3 {[%emt 0:00:21]} 27. bxc3 {[%emt 0:02:18]} Rb1+ {[%emt 0:00:09]} 28. Rxb1 {[%emt 0:00:26]} cxb1=Q+ 29. Rxb1 Bxb1 {[%emt 0:01:00]} 30. Kxb1 {[%emt 0:00:54]} f5 {[%emt 0:00:11]} 31. Kc2 {[%emt 0:00:11]} f4 {[%emt 0:00:07]} 32. Kd2 {[%emt 0:00:12]} f3 {[%emt 0:00:14]} 33. Ke1 {[%emt 0:00:26]} h5 {[%emt 0:00:49]} 34. Kf2 {[%emt 0:00:35]} g5 {[%emt 0:00:12]} 35. c4 {[%emt 0:00:20]} g4 {[%emt 0:00:07]} 36. c5 {[%emt 0:02:03]} h4 {[%emt 0:00:05]} 37. c6 {[%emt 0:00:14]} g3+ {[%emt 0:00:10]} 38. hxg3 {[%emt 0:00:12]} hxg3+ {[%emt 0:00:08]} 39. Ke3 {[%emt 0:00:31]} f2 {[%emt 0:00:32]} 40. c7 {[%emt 0:00:11]} f1=Q {[%emt 0:00:14]} 41. Kd4 {[%emt 0:00:25]} Rc8 {[%emt 0:00:25]} 42. Kd5 {[%emt 0:00:22]} Rxc7 {[%emt 0:00:06]} 43. Ke5 {[%emt 0:01:00]} Rc4 {[%emt 0:01:00]} 44. Kd5 {[%emt 0:00:56]} Qd3+ {[%emt 0:00:12]} 45. Ke5 {[%emt 0:01:10]} Qd4+ {[%emt 0:00:14]} 46. Kf5 {[%emt 0:00:26]} Rc5+ {[%emt 0:00:11]} 47. Ke6 {[%emt 0:00:49]} Qd5+ {[%emt 0:00:31]} 48. Kf6 {[%emt 0:02:10]} Rc6+ {[%emt 0:00:14]} 49. Ke7 {[%emt 0:00:15]} Qd6+ {[%emt 0:00:18]} 50. Ke8 {[%emt 0:00:32]} Rc8# {[%emt 0:00:05]} 0-1

[Event "CZE-ch U10 2020"]
[Site "Kouty nad Desnou"]
[Date "2020.03.11"]
[Round "6.11"]
[White "Policar, Martin"]
[Black "Stefaniv, Vladyslav"]
[Result "1-0"]
[ECO "B21"]
[WhiteElo "1264"]
[BlackElo "1265"]
[Annotator "NA"]
[PlyCount "61"]
[EventDate "2020.03.07"]
[EventCountry "CZE"]
[SourceTitle "playchess.com"]
[Source "ChessBase"]
[SourceQuality "1"]
[TimeControl "5400+30"]

1. e4 {[%emt 0:00:00]} c5 {[%emt 0:00:00]} 2. d4 {[%emt 0:00:01]} cxd4 {[%emt 0:00:00]} 3. c3 {[%emt 0:00:35]} dxc3 {[%emt 0:00:00]} 4. Nxc3 {[%emt 0:00:42]} e6 {[%emt 0:00:11]} 5. Nf3 {[%emt 0:02:29]} Nc6 {[%emt 0:01:12]} 6. Bc4 {[%emt 0:03:04]} a6 {[%emt 0:04:55]} 7. a4 {[%emt 0:02:10]} Nf6 {[%emt 0:04:34]} 8. Bf4 {[%emt 0:05:12]} d6 {[%emt 0:08:56]} 9. Qd2 {[%emt 0:07:36]} h6 {[%emt 0:20:34]} 10. Rd1 {[%emt 0:00:53]} e5 {[%emt 0:03:04]} 11. Bg3 {[%emt 0:02:07]} Bg4 {[%emt 0:09:46]} 12. Be2 {[%emt 0:06:22]} Bxf3 {[%emt 0:04:39]} 13. Bxf3 {[%emt 0:01:25]} Qc7 {[%emt 0:11:12]} 14. Nd5 {[%emt 0:04:44]} Nxd5 {[%emt 0:03:45]} 15. exd5 {[%emt 0:02:06]} Nd4 {[%emt 0:02:27]} 16. Be4 {[%emt 0:01:27]} f5 {[%emt 0:04:52]} 17. Bb1 {[%emt 0:02:20]} Rc8 {[%emt 0:01:10]} 18. Qe3 {[%emt 0:01:17]} Nc2+ {[%emt 0:07:30]} 19. Bxc2 {[%emt 0:00:45]} Qxc2 {[%emt 0:00:03]} 20. f4 {[%emt 0:05:16]} e4 {[%emt 0:00:28]} 21. O-O {[%emt 0:01:13]} Qxb2 {[%emt 0:01:15]} 22. Rb1 {[%emt 0:00:14]} Qc3 {[%emt 0:00:31]} 23. Qxc3 {[%emt 0:03:24]} Rxc3 {[%emt 0:00:03]} 24. Rxb7 {[%emt 0:00:10]} Ra3 {[%emt 0:00:11]} 25. Rc1 {[%emt 0:00:07]} Be7 {[%emt 0:01:46]} 26. Rc8+ {[%emt 0:00:14]} Bd8 {[%emt 0:00:16]} 27. Bh4 {[%emt 0:00:12]} Ra1+ {[%emt 0:02:36]} 28. Kf2 {[%emt 0:00:07]} Ra2+ {[%emt 0:01:25]} 29. Ke1 {[%emt 0:00:03]} Ra1+ {[%emt 0:00:34]} 30. Kd2 {[%emt 0:00:04]} e3+ {[%emt 0:01:46]} 31. Kc2 {[%emt 0:00:46]} 1-0

[Event "CZE-ch U10 2020"]
[Site "Kouty nad Desnou"]
[Date "2020.03.11"]
[Round "6.12"]
[White "Stejskal, Jakub"]
[Black "Letal, Hynek"]
[Result "0-1"]
[ECO "B24"]
[WhiteElo "1557"]
[BlackElo "1127"]
[Annotator "NA RC"]
[PlyCount "38"]
[EventDate "2020.03.07"]
[EventCountry "CZE"]
[SourceTitle "playchess.com"]
[Source "ChessBase"]
[SourceQuality "1"]
[TimeControl "5400+30"]

1. e4 {[%emt 0:00:00]} c5 {[%emt 0:00:00]} 2. Nc3 {[%emt 0:09:52]} Nc6 {[%emt 0:00:17]} 3. Nf3 {[%emt 0:07:17]} Nf6 {[%emt 0:00:26]} 4. Bc4 {[%emt 0:01:28]} g6 {[%emt 0:00:49]} 5. d4 {[%emt 0:05:59]} cxd4 {[%emt 0:00:33]} 6. Nxd4 {[%emt 0:00:14]} Bg7 {[%emt 0:00:16]} 7. Nxc6 {[%emt 0:06:19]} bxc6 {[%emt 0:00:31]} 8. e5 {[%emt 0:00:52]} Ng4 {[%emt 0:03:56]} 9. f4 {[%emt 0:02:29]} d6 {[%emt 0:03:08]} 10. e6 {[%emt 0:10:50]} f5 {[%emt 0:02:05]} 11. O-O {[%emt 0:04:40]} O-O {[%emt 0:02:16]} 12. Qd3 {[%emt 0:08:10]} d5 {[%emt 0:01:37]} 13. Bb3 {[%emt 0:00:28]} Qb6+ {[%emt 0:01:47]} 14. Kh1 {[%emt 0:10:23]} Nf2+ {[%emt 0:00:23]} 15. Rxf2 {[%emt 0:02:30]} Qxf2 {[%emt 0:00:35]} 16. Be3 {[%emt 0:00:38]} Qh4 {[%emt 0:00:19]} 17. Rd1 {[%emt 0:04:01]} Bxe6 {[%emt 0:03:01]} 18. Qe2 {[%emt 0:00:36]} Bf7 {[%emt 0:02:32]} 19. Bf2 {[%emt 0:00:12]} Qxf4 {[%emt 0:02:55]} 0-1